fUSD/lending_fUSD_20240125
["ID","MTS","AMOUNT","RATE_DAILY","PERIOD"]
[312767703,1706201303698,-295.45273075,0.00022748,2]
[312767704,1706201303720,-499.99,0.00022748,2]
[312767705,1706201303941,-184.77981935,0.00022749,2]
[312767706,1706201303967,-1254.84755188,0.00022749,2]
[312767707,1706201303989,-2459.53667299,0.00022749,2]
[312767708,1706201304012,-18478.15965103,0.0002275,2]
[312767710,1706201350166,-81973.91831481,0.0002275,2]
[312767711,1706201362127,-16345.68734708,0.0002275,2]
[312767712,1706201362148,-1000.0,0.00022766,2]
[312767713,1706201362167,-7510.2338,0.00022897,2]
[312767714,1706201362186,-481.3189,0.00022897,2]
[312767715,1706201362205,-7526.1705,0.00022897,2]
[312767716,1706201362225,-155.0,0.00022898,2]
[312767717,1706201362245,-408.03708546,0.00022898,2]
[312767718,1706201362265,-2300.07012469,0.00022898,2]
[312767719,1706201362284,-291.80377604,0.00022898,2]
[312767720,1706201362304,-617.43229226,0.00022898,2]
[312767721,1706201362324,-230.73082258,0.00022898,2]
[312767722,1706201362343,-155.37183511,0.00022898,2]
[312767723,1706201362363,-177.65890692,0.00022898,2]
[312767724,1706201362384,-289.74620309,0.00022898,2]
[312767725,1706201362407,-260.29941624,0.00022898,2]
[312767726,1706201362428,-234.89781562,0.00022898,2]
[312767727,1706201362451,-155.64276988,0.00022898,2]
[312767728,1706201362473,-457.5831,0.00022898,2]
[312767729,1706201362499,-11919.73772549,0.00022899,2]
[312767730,1706201362521,-155.0,0.00022899,2]
[312767731,1706201362542,-18030.87171528,0.00022899,2]
[312767732,1706201370124,-7786.47128167,0.00022899,2]
[312767733,1706201370147,-1669.89298535,0.000229,2]
[312767745,1706201432326,-5335.54724617,0.000229,2]
[312767746,1706201432340,-20076.78434843,0.000229,2]
[312767747,1706201432352,-1432.18835877,0.000229,2]
[312767748,1706201432365,-5465.27405715,0.000229,2]
[312767749,1706201432376,-1277.78904127,0.000229,2]
[312767750,1706201432441,-4819.12133412,0.000229,2]
[312767752,1706201432690,-34296.76423251,0.000229,2]
[312767753,1706201432919,-0.10823624,0.000229,2]
[312767754,1706201432942,-15000.0,0.000229,2]
[312767771,1706201438280,-764.65,0.000229,2]
[312767772,1706201438405,-2818.03925739,0.000229,2]
[312767773,1706201438421,-15162.23759708,0.000229,2]
[312767783,1706201439489,-0.5278756,0.000229,2]
[312767788,1706201439529,-24403.38697746,0.000229,2]
[312767791,1706201439540,-1195.43925594,0.000229,2]
[312767793,1706201439551,-19882.02743384,0.000229,2]
[312767796,1706201439567,-155644.90766164,0.000229,2]
[312767798,1706201439579,-2655.01509468,0.000229,2]
[312767800,1706201439589,-158.39,0.00022907,2]
[312767802,1706201439598,-19156.27488788,0.00023,2]
[312767804,1706201439607,-158.39,0.0002307,2]
[312767806,1706201439616,-304.76125718,0.00023125,2]
[312767808,1706201439625,-167.96801762,0.00023126,2]
[312767810,1706201439635,-1023.94564382,0.00023126,2]
[312767812,1706201439645,-292.8513192,0.00023127,2]
[312767814,1706201439654,-348.06286348,0.00023127,2]
[312767816,1706201439663,-324.53200512,0.00023127,2]
[312767818,1706201439672,-163.88,0.00023164,2]
[312767820,1706201439683,-657.05,0.00023496,2]
[312767822,1706201439692,-156.52,0.00023706,2]
[312767824,1706201439701,-420.0,0.0002389,2]
[312767826,1706201439710,-156.8,0.0002393,2]
[312767828,1706201439719,-163.88,0.00024534,2]
[312767830,1706201439728,-1000.0,0.00024657,2]
[312767832,1706201439736,-1076.41774944,0.00024657,2]
[312767834,1706201439745,-250.0,0.00024658,2]
[312767836,1706201439754,-200.0,0.00025,2]
[312767838,1706201439763,-657.05,0.0002514,2]
[312767840,1706201439772,-156.52,0.00025188,2]
[312767842,1706201439781,-232.0,0.00025961,2]
[312767843,1706201439790,-500.0,0.00026,2]
[312767845,1706201439799,-163.83407772,0.00026058,2]
[312767847,1706201439808,-1242.22,0.00026575,2]
[312767849,1706201439817,-1153.1,0.00026575,2]
[312767851,1706201439826,-156.52,0.0002667,2]
[312767853,1706201439835,-657.05,0.00026784,2]
[312767855,1706201439844,-160.33,0.00027397,2]
[312767856,1706201439853,-183.53802334,0.00028,2]
[312767858,1706201439863,-160.33,0.00028006,2]
[312767860,1706201439872,-527.30955592,0.00028428,2]
[312767971,1706201440891,-129.74044408,0.00028428,2]
[312767973,1706201440901,-160.33,0.00028615,2]
[312767974,1706201440910,-588.40515981,0.00029,2]
[312767976,1706201440919,-160.33,0.00029224,2]
[312767979,1706201440930,-153.07,0.0002975,2]
[312767980,1706201440940,-160.33,0.00029833,2]
[312767983,1706201440949,-7313.22203589,0.0003,4]
[312767984,1706201440958,-155.0,0.0003,2]
[312767987,1706201440968,-2297.50378135,0.0003,4]
[312767989,1706201440978,-3050.71772353,0.0003,2]
[312767990,1706201440988,-150.0,0.0003,2]
[312767993,1706201440997,-657.05,0.00030072,2]
[312767995,1706201441007,-154.07,0.00030137,2]
[312767997,1706201441016,-163.83407772,0.00030305,2]
[312767998,1706201441026,-160.33,0.00030441,2]
[312768000,1706201441036,-2000.0,0.00030776,2]
[312768002,1706201441045,-160.33,0.0003105,2]
[312768004,1706201441055,-1000.0,0.0003134,2]
[312768006,1706201441064,-180.0,0.00031644,2]
[312768008,1706201441074,-160.33,0.00031659,2]
[312768010,1706201441083,-919.76,0.00031893,2]
[312768012,1706201441093,-156.25094584,0.00032,2]
[312768014,1706201441102,-13097.36826834,0.00032,4]
[312768016,1706201441112,-160.33,0.00032268,2]
[312768018,1706201441121,-201.92098745,0.000325,2]
[312768020,1706201441131,-160.33,0.00032877,2]
[312768022,1706201441141,-162.0,0.00032877,15]
[312768024,1706201441151,-300.0,0.000329,12]
[312768026,1706201441160,-271.91677476,0.00033,4]
[312768027,1706201441170,-27000.79268719,0.00033,4]
[312768028,1706201441182,-919.76,0.00033073,2]
[312768029,1706201441193,-150.0,0.000336,2]
[312768030,1706201441202,-1000.0,0.00034,4]
[312768031,1706201441213,-919.76,0.00034254,2]
[312768032,1706201441223,-163.83407772,0.00034553,2]
[312768033,1706201441233,-531.37112312,0.000349,2]
[312768034,1706201441242,-374.92675683,0.00035,2]
[312768035,1706201441252,-153.07,0.00035127,2]
[312768037,1706201441261,-1000.0,0.00035257,2]
[312768039,1706201441271,-919.76,0.00035434,2]
[312768041,1706201441280,-919.76,0.00036614,2]
[312768043,1706201441290,-5000.0,0.0003689,7]
[312768045,1706201441300,-669.52477298,0.00037,7]
[312768047,1706201441312,-158.54,0.000377,3]
[312768049,1706201441324,-158.54,0.000377,3]
[312768051,1706201441333,-1242.22,0.00037808,2]
[312768053,1706201441343,-1153.1,0.00037808,2]
[312768055,1706201441353,-150.04,0.00038356,2]
[312768057,1706201441363,-485.59833642,0.00038489,4]
[312768059,1706201441372,-163.83407772,0.000388,2]
[312768061,1706201441382,-155.0,0.00038878,4]
[312768063,1706201441392,-545.67434022,0.00038878,4]
[312768065,1706201441401,-1017.2873872,0.00038878,4]
[312768067,1706201441411,-489.18573664,0.00038878,4]
[312768069,1706201441424,-398.79823949,0.00038878,4]
[312768071,1706201441437,-155.42586713,0.00038879,4]
[312768074,1706201441447,-4707.23527458,0.00038879,4]
[312768076,1706201441459,-1512.296746,0.00038879,4]
[312768078,1706201441469,-6498.56654658,0.0003888,2]
[312768080,1706201441479,-6498.5665465,0.0003888,2]
[312768082,1706201441489,-6498.5665465,0.0003888,2]
[312768084,1706201441501,-6498.5665465,0.0003888,2]
[312768086,1706201441510,-1000.0,0.00039175,2]
[312768088,1706201441520,-789.5,0.00039235,10]
[312768090,1706201441529,-5309.0,0.00039245,30]
[312768092,1706201441539,-5309.0,0.00039245,60]
[312768094,1706201441548,-4778.0,0.00039445,30]
[312768096,1706201441558,-4778.0,0.00039445,60]
[312768098,1706201441566,-191.10381467,0.00039516,7]
[312768100,1706201441575,-4247.0,0.00039645,30]
[312768102,1706201441585,-4247.0,0.00039645,60]
[312768104,1706201441595,-3716.0,0.00039845,30]
[312768106,1706201441604,-3716.0,0.00039845,60]
[312768108,1706201441613,-3185.0,0.00040045,30]
[312768110,1706201441623,-3185.0,0.00040045,60]
[312768112,1706201441631,-233.57132903,0.00040052,7]
[312768114,1706201441641,-4950.0,0.00040052,7]
[312768116,1706201441650,-7717.19690952,0.00040052,8]
[312768118,1706201441659,-1442.06135761,0.00040052,7]
[312768120,1706201441669,-6498.5665465,0.00040203,2]
[312768122,1706201441678,-2654.0,0.00040245,30]
[312768124,1706201441690,-2654.0,0.00040245,60]
[312768126,1706201441699,-156.0,0.00040245,30]
[312768128,1706201441709,-1386.0484505,0.0004037,12]
[312768130,1706201441718,-153.07,0.00040503,2]
[312768132,1706201441727,-83098.1965435,0.00040897,6]
[312768134,1706201441736,-843.409061,0.0004137,30]
[312768136,1706201441746,-158.54,0.000415,4]
[312768138,1706201441756,-158.54,0.000415,4]
[312768140,1706201441765,-531.37112311,0.00041619,5]
[312768142,1706201441776,-840.85262393,0.00042,120]
[312768144,1706201441785,-594.39054103,0.00042,4]
[312768146,1706201441795,-163.83407772,0.00043048,2]
[312768148,1706201441804,-1000.0,0.00043092,2]
[312768150,1706201441814,-162.0,0.00043151,15]
[312768152,1706201441823,-717.97284452,0.00044384,4]
[312768154,1706201441831,-6498.5665465,0.00044608,6]
[312768155,1706201441841,-409.48282714,0.00044965,7]
[312768158,1706201441850,-729.0,0.000452,7]
[312768159,1706201441860,-158.54,0.000453,5]
[312768162,1706201441869,-158.54,0.000453,5]
[312768163,1706201441878,-153.07,0.0004588,2]
[312768166,1706201441887,-1000.0,0.0004701,2]
[312768168,1706201441897,-163.83407772,0.00047295,2]
[312768170,1706201441906,-156.8250576,0.00048199,30]
[312768172,1706201441915,-209.0,0.00048295,2]
[312768174,1706201441924,-5481.0,0.0004879,2]
[312768176,1706201441935,-1512.35,0.00048879,15]
[312768178,1706201441944,-1512.35,0.00048879,15]
[312768180,1706201441953,-1512.35,0.00048879,15]
[312768182,1706201441962,-1512.35,0.00048879,15]
[312768184,1706201441972,-1512.35,0.00048879,15]
[312768186,1706201441980,-1512.35,0.00048879,15]
[312768188,1706201441989,-1512.35,0.00048879,15]
[312768190,1706201441999,-1512.35,0.00048879,15]
[312768192,1706201442008,-89571.21904437,0.0004888,2]
[312768224,1706201442305,-300.0,0.0004888,2]
[312768228,1706201442331,-409.47044411,0.0004888,2]
[312768230,1706201442343,-315.98060758,0.0004888,2]
[312768269,1706201444682,-779.5807093,0.0004888,2]
[312768270,1706201444694,-694.5375725,0.0004888,2]
[312768271,1706201444706,-9121.76654697,0.0004888,2]
[312768272,1706201444792,-1227.33,0.0004888,2]
[312768273,1706201444904,-652.45543067,0.0004888,2]
[312768274,1706201444965,-1045.89934814,0.0004888,2]
[312768275,1706201444978,-495.58079881,0.0004888,2]
[312768276,1706201444991,-640.79833317,0.0004888,2]
[312768300,1706201446399,-1464.2171953,0.0004888,2]
[312768301,1706201446412,-33011.66760633,0.0004888,2]
[312768302,1706201446524,-6279.02062856,0.0004888,2]
[312768303,1706201446578,-459.91149139,0.0004888,2]
[312768304,1706201446598,-550.69565633,0.0004888,2]
[312768305,1706201446751,-0.01863336,0.0004888,2]
[312768306,1706201446764,-9912.08681404,0.0004888,2]
[312768307,1706201446777,-440.80572,0.0004888,2]
[312768308,1706201446790,-468.96,0.0004888,2]
[312768309,1706201446800,-577.2793438,0.0004888,2]
[312768331,1706201571632,1016.28539504,0.00015,14]
[312768350,1706201832150,155.46,0.00020938,2]
[312768363,1706201875804,177.01,0.0001787,2]
[312768382,1706202273423,155.46,0.00019673,2]
[312768383,1706202285063,2000.0,0.00021591,2]
[312768384,1706202319519,499.14,0.00021589,2]
[312768385,1706202338022,11433.07,0.00021575,2]
[312768386,1706202350870,250.0,0.00021575,2]
[312768387,1706202385454,167.37,0.00021556,2]
[312768388,1706202460792,200.0,0.00021516,2]
[312768390,1706202516703,2705.0,0.00021597,2]
[312768391,1706202571354,811.5751,0.00021549,14]
[312768392,1706202620365,-868.30882633,0.00021643,2]
[312768393,1706202620391,-186.88,0.00021644,2]
[312768394,1706202620416,-944.81117367,0.00021647,2]
[312768411,1706202633216,-284.78931424,0.00021647,2]
[312768412,1706202633277,-801.72292657,0.00021647,2]
[312768413,1706202633286,-150.0,0.0002165,2]
[312768414,1706202633295,-200.0,0.00021671,2]
[312768415,1706202633304,-158.53,0.00021796,2]
[312768416,1706202633313,-551.74,0.00021839,2]
[312768417,1706202633322,-250.0,0.00021918,2]
[312768418,1706202633332,-514.98086323,0.00021918,2]
[312768419,1706202633421,-58.81913677,0.00021918,2]
[312768420,1706202633432,-176.54,0.00022,2]
[312768421,1706202633442,-492.21196358,0.00022078,2]
[312768422,1706202633451,-413.83193653,0.00022078,2]
[312768429,1706202637469,-4226.88806347,0.00022078,2]
[312768431,1706202637677,-294.77806135,0.00022198,2]
[312768432,1706202637687,-300.0,0.000223,8]
[312768433,1706202637696,-300.0,0.000223,8]
[312768434,1706202637706,-621.37,0.00022337,2]
[312768435,1706202637715,-163.6345935,0.000224,2]
[312768436,1706202637724,-700.0,0.000224,8]
[312768437,1706202637733,-700.0,0.000224,8]
[312768438,1706202637742,-163.63459349,0.00022483,2]
[312768439,1706202637751,-362.79916543,0.000225,2]
[312768440,1706202637760,-5139.80382272,0.000225,2]
[312768441,1706202637774,-2398.31170018,0.000225,2]
[312768442,1706202637795,-3698.23444745,0.000225,2]
[312768443,1706202637804,-1100.0,0.000225,8]
[312768444,1706202637813,-1000.0,0.000225,8]
[312768445,1706202637822,-176.54,0.00022548,2]
[312768446,1706202637831,-163.63459349,0.00022567,2]
[312768448,1706202637840,-166.7152,0.000226,2]
[312768450,1706202637849,-1676.5457,0.000226,2]
[312768451,1706202637858,-500.0,0.000226,2]
[312768452,1706202637867,-1500.0,0.000226,8]
[312768453,1706202637877,-1400.0,0.000226,8]
[312768454,1706202637886,-6950.2937007,0.00022649,2]
[312768456,1706202637895,-163.63459349,0.0002265,2]
[312768458,1706202637905,-31365.0842,0.0002265,2]
[312768460,1706202637914,-1900.0,0.000227,8]
[312768462,1706202637923,-1800.0,0.000227,8]
[312768464,1706202637932,-163.63459349,0.00022733,2]
[312768466,1706202637941,-3880.0947,0.00022799,2]
[312768468,1706202637950,-500.0,0.000228,2]
[312768469,1706202637959,-9856.71712944,0.000228,2]
[312768481,1706202638107,-12089.29817056,0.000228,2]
[312768482,1706202638117,-300.0,0.000228,8]
[312768483,1706202638126,-300.0,0.000228,8]
[312768484,1706202638135,-163.63459349,0.00022817,2]
[312768485,1706202638144,-1000.0,0.00022855,2]
[312768486,1706202638154,-847.06410669,0.000229,2]
[312768488,1706202638163,-282.89706329,0.000229,2]
[312768490,1706202638172,-500.0,0.000229,2]
[312768492,1706202638182,-155.0,0.000229,2]
[312768494,1706202638191,-150.78829588,0.000229,2]
[312768496,1706202638200,-82446.7486,0.000229,2]
[312768498,1706202638209,-90787.5747,0.000229,2]
[312768500,1706202638219,-163.63459349,0.000229,2]
[312768502,1706202638228,-5000.0,0.000229,2]
[312768504,1706202638237,-2040.27105353,0.000229,2]
[312768506,1706202638246,-153.92545134,0.000229,2]
[312768508,1706202638256,-300.0,0.000229,8]
[312768510,1706202638264,-300.0,0.000229,8]
[312768512,1706202638274,-2040.27105344,0.00022901,2]
[312768514,1706202638283,-2040.27105344,0.00022902,2]
[312768516,1706202638293,-2040.27105344,0.00022903,2]
[312768518,1706202638302,-2040.27105344,0.00022904,2]
[312768520,1706202638311,-2040.27105344,0.00022905,2]
[312768522,1706202638320,-2040.27105344,0.00022907,2]
[312768524,1706202638329,-2040.27105344,0.00022908,2]
[312768526,1706202638338,-2040.27105344,0.00022909,2]
[312768528,1706202638347,-2040.27105344,0.0002291,2]
[312768530,1706202638355,-2040.27105344,0.00022911,2]
[312768532,1706202638365,-2040.27105344,0.00022912,2]
[312768534,1706202638373,-150.78829582,0.00022919,2]
[312768536,1706202638383,-150.78829582,0.00022937,2]
[312768538,1706202638392,-150.78829582,0.00022956,2]
[312768540,1706202638403,-150.78829582,0.00022974,2]
[312768542,1706202638412,-150.78829582,0.00022993,2]
[312768544,1706202638422,-167.37,0.00022993,2]
[312768546,1706202638431,-304.76125718,0.00022998,2]
[312768548,1706202638440,-1023.94564382,0.00022998,2]
[312768550,1706202638450,-292.8513192,0.00022998,2]
[312768552,1706202638459,-167.96801762,0.00022998,2]
[312768554,1706202638469,-2142.32527762,0.00022998,2]
[312768556,1706202638478,-37164.98638148,0.00022998,2]
[312768558,1706202638488,-348.06286348,0.00022999,2]
[312768560,1706202638497,-1108.44967788,0.00022999,2]
[312768562,1706202638507,-455.18278747,0.00022999,2]
[312768564,1706202638516,-198.84105909,0.00022999,2]
[312768566,1706202638525,-500.0,0.00022999,2]
[312768568,1706202638533,-401.69120686,0.00022999,2]
[312768570,1706202638543,-491.91386395,0.00022999,2]
[312768572,1706202638553,-500.0,0.00022999,2]
[312768574,1706202638562,-500.0,0.00022999,2]
[312768576,1706202638571,-500.0,0.00022999,2]
[312768578,1706202638581,-596.72433159,0.00022999,2]
[312768580,1706202638590,-500.0,0.00022999,2]
[312768582,1706202638599,-500.0,0.00022999,2]
[312768584,1706202638608,-500.0,0.00022999,2]
[312768586,1706202638618,-209.65463729,0.00022999,2]
[312768588,1706202638627,-500.0,0.00022999,2]
[312768590,1706202638636,-500.0,0.00022999,2]
[312768592,1706202638645,-500.0,0.00022999,2]
[312768594,1706202638658,-500.0,0.00022999,2]
[312768595,1706202638668,-311.65153023,0.00022999,2]
[312768598,1706202638678,-500.0,0.00022999,2]
[312768599,1706202638688,-500.0,0.00022999,2]
[312768602,1706202638698,-500.0,0.00022999,2]
[312768603,1706202638707,-568.62134192,0.00022999,2]
[312768605,1706202638717,-210.8202274,0.00022999,2]
[312768607,1706202638726,-828.864424,0.00023,2]
[312768610,1706202638736,-4470857.21243325,0.00023,2]
[312768612,1706202638754,-31971.13540072,0.00023,2]
[312768615,1706202638774,-4889.68697517,0.00023,2]
[312768617,1706202638786,-1308.10982586,0.00023,2]
[312768620,1706202638799,-255.77010954,0.00023,2]
[312768622,1706202638810,-336.38242435,0.00023,2]
[312768624,1706202638821,-7801.33833851,0.00023,2]
[312768627,1706202638839,-323.87692864,0.00022899,2]
[312768629,1706202638849,-49099.35071143,0.00023,2]
[312768632,1706202638872,-0.47025088,0.00023,2]
[312768635,1706202638883,-44580.06620924,0.00023,2]
[312768637,1706202638894,-2631.9234665,0.00023,2]
[312768639,1706202638908,-654.70682192,0.00023,2]
[312768641,1706202638919,-22598.66500001,0.00023,2]
[312768644,1706202638938,-299.55621373,0.00023,2]
[312768647,1706202638949,-435.87771536,0.00023,2]
[312768649,1706202638961,-5045.50609611,0.00023,2]
[312768814,1706202640531,-115065.51316483,0.00023,2]
[312768818,1706202640561,-0.09813875,0.00023,2]
[312768829,1706202640653,-947.46547973,0.00023,2]
[312768831,1706202640665,-383.57266039,0.00023,2]
[312768833,1706202640676,-661.41075,0.00023,2]
[312768836,1706202640714,-871.19482584,0.00023,2]
[312768837,1706202640731,-1143.59020439,0.00023,2]
[312768876,1706202644017,-388.93617367,0.00023,2]
[312768877,1706202644029,-364.9999919,0.00023,2]
[312768878,1706202644044,-2000.16361891,0.00023,2]
[312768879,1706202644091,-22635.40044229,0.00023,2]
[312768880,1706202644160,-18624.83780953,0.00023,2]
[312768881,1706202644171,-895.48954311,0.00023,2]
[312768882,1706202644182,-8884.95303992,0.00023,2]
[312768883,1706202644193,-77813.42707193,0.00023,2]
[312768884,1706202644205,-937.0230416,0.00023,2]
[312768885,1706202644252,-4207.41639595,0.00023,2]
[312768886,1706202644267,-7437.07761736,0.00023,2]
[312768903,1706202645580,-43515.74349047,0.00023,2]
[312768904,1706202645595,-2031.32341448,0.00023,2]
[312768906,1706202645830,-5049.02647396,0.00023,2]
[312768907,1706202645844,-783.13449005,0.00023,2]
[312768916,1706202654754,155.14082571,0.00019482,2]
[312768917,1706202659065,2390.39323209,0.00021539,2]
[312768918,1706202662528,598.30139574,0.00020468,2]
[312768919,1706202663729,4170.3233911,0.00016235,2]
[312768920,1706202664355,1228.7364261,0.00020698,2]
[312768921,1706202671575,161.88839056,0.00020698,2]
[312768922,1706202674508,1373.77708962,0.0002162,2]
[312768923,1706202681727,4170.3233911,0.00016235,2]
[312768924,1706202682442,731.88024959,0.00021,2]
[312768925,1706202684334,344.48190648,0.00020698,2]
[312768926,1706202689631,161.88839056,0.00020696,2]
[312768927,1706202697106,6092.94367433,0.0002162,2]
[312768928,1706202698141,1024.54554514,0.0002162,2]
[312768929,1706202700493,610.8682776,0.0002162,2]
[312768930,1706202703458,886.39651552,0.0002162,2]
[312768931,1706202703728,4170.3233911,0.00016215,2]
[312768932,1706202705651,1279.39039853,0.0002162,5]
[312768933,1706202706917,587.43520251,0.00021,2]
[312768934,1706202707009,403.043601,0.00021536,2]
[312768935,1706202707112,155.0,0.0002162,2]
[312768936,1706202709592,161.88839056,0.00020338,2]
[312768937,1706202710628,284.6471464,0.0002162,2]
[312768938,1706202711894,5198.49724003,0.0002162,2]
[312768939,1706202714102,554.747,0.00021549,14]
[312768940,1706202714138,939.564742,0.0002162,2]
[312768941,1706202715122,6092.94367433,0.0002162,2]
[312768942,1706202716978,208.9630072,0.0002162,2]
[312768943,1706202717641,1281.24963761,0.0002162,5]
[312768944,1706202723713,4170.3233911,0.00016215,2]
[312768945,1706202725278,155.0,0.0002162,2]
[312768946,1706202725447,458.14179625,0.0002162,2]
[312768947,1706202725892,2961.26959057,0.0002162,2]
[312768948,1706202729588,161.88839056,0.00020338,2]
[312768949,1706202731106,6092.94367433,0.0002162,2]
[312768950,1706202734640,284.6471464,0.0002162,2]
[312768951,1706202741123,159.33142403,0.0002162,2]
[312768952,1706202741950,169.68,0.00017602,2]
[312768953,1706202745777,4170.3233911,0.00016215,2]
[312768954,1706202747110,1407.19920925,0.0002162,2]
[312768955,1706202747584,161.88839056,0.00020338,2]
[312768956,1706202758632,169.42992406,0.0002162,2]
[312768957,1706202767588,283.4989621,0.00020338,2]
[312768958,1706202767726,4170.3233911,0.00016215,2]
[312768959,1706202781984,-2000.0,0.0002164,2]
[312768960,1706202785720,3328.06926688,0.00016215,2]
[312768961,1706202800852,-178.08479796,0.00021637,2]
[312768962,1706202800880,-1821.91520204,0.00021638,2]
[312768963,1706202831471,156.88,0.00020009,2]
[312768964,1706202887891,159.46949662,0.00021536,2]
[312768965,1706202967171,530.46043122,0.00021528,2]
[312768966,1706203046807,150.0,0.00021484,2]
[312768967,1706203049856,175.49,0.00016712,2]
[312768968,1706203060493,622.85925909,0.0002162,2]
[312768969,1706203065949,200.0,0.00021541,2]
[312768970,1706203067466,1179.89992802,0.0002162,2]
[312768971,1706203075710,232.33006862,0.0002162,2]
[312768972,1706203076551,622.85925909,0.00021598,2]
[312768973,1706203080922,362.21973642,0.0002162,2]
[312768974,1706203084826,196.86576814,0.0002162,2]
[312768975,1706203087235,401.12338196,0.0002162,2]
[312768976,1706203088800,155.0,0.0002162,2]
[312768977,1706203092336,524.74840027,0.0002162,2]
[312768978,1706203099762,2605.00254131,0.0002162,2]
[312768979,1706203102549,623.08383501,0.00021598,2]
[312768980,1706203105361,200.0,0.00021566,2]
[312768981,1706203148325,2000.0,0.00021566,2]
[312768982,1706203165658,178.08479796,0.0002162,2]
[312768983,1706203168261,2605.00254131,0.0002162,2]
[312768984,1706203229198,155.22207329,0.00021373,2]
[312768985,1706203232551,5222.36047087,0.0002162,2]
[312768986,1706203234007,1179.89992802,0.0002162,2]
[312768987,1706203242283,2605.00254131,0.0002162,2]
[312768988,1706203255224,188.54948321,0.00021373,2]
[312768989,1706203258364,500.0,0.00021577,2]
[312768990,1706203259982,157.45,0.00019659,2]
[312768991,1706203264475,525.90736384,0.0002162,2]
[312768993,1706203270535,250.0,0.00021529,2]
[312768994,1706203278391,629.77338957,0.0002162,2]
[312768995,1706203280241,868.30882633,0.0002162,2]
[312768996,1706203304806,167.37,0.00021594,2]
[312768997,1706203349677,170.72,0.00021537,2]
[312768998,1706203352373,21628.28,0.00021537,2]
[312769002,1706203400755,10786.47,0.0002159,2]
[312769003,1706203415338,442.38,0.0002159,2]
[312769004,1706203490382,3068.17,0.0002159,2]
[312769005,1706203540681,200.0,0.00021611,2]
[312769006,1706203566280,-600.0,0.00021621,2]
[312769007,1706203599145,2000.0,0.00021511,2]
[312769008,1706203609703,1767.63,0.00021511,2]
[312769009,1706203610486,1041.28739721,0.0002162,2]
[312769010,1706203615438,492.69,0.00021566,2]
[312769011,1706203729839,167.05,0.00019662,2]
[312769012,1706203747497,250.0,0.00021535,2]
[312769013,1706203757194,-2530.75590545,0.00021621,2]
[312769014,1706203757214,-186.76,0.00021644,2]
[312769015,1706203757238,-3784.9642538,0.00021646,7]
[312769016,1706203769565,3130.75590545,0.00021373,2]
[312769017,1706203785572,887.62386198,0.00021373,2]
[312769018,1706203798299,159.46949661,0.00021546,2]
[312769026,1706203831719,-300.0,0.00021622,2]
[312769027,1706203831729,-150.0,0.00021622,2]
[312769028,1706203831740,-489.67095499,0.00021623,2]
[312769029,1706203831829,-1813.56140822,0.00021623,2]
[312769030,1706203831887,-4889.84198465,0.00021623,2]
[312769058,1706203837752,-787.81248,0.00021623,2]
[312769059,1706203837816,-1022.86018424,0.00021623,2]
[312769060,1706203837879,-14896.2529879,0.00021623,2]
[312769061,1706203837890,-1551.22159309,0.00021646,7]
[312769062,1706203837903,-260.17747455,0.00021647,2]
[312769063,1706203837913,-1199.49514891,0.00021647,2]
[312769064,1706203837923,-305.0,0.00021647,2]
[312769065,1706203837932,-1951.18829727,0.00021647,2]
[312769066,1706203837942,-155.0,0.00021647,2]
[312769067,1706203837951,-155.0,0.00021647,2]
[312769068,1706203837961,-235.18894409,0.00021647,2]
[312769069,1706203837970,-858.05378955,0.00021647,2]
[312769070,1706203837980,-156.99494214,0.00021647,2]
[312769071,1706203837989,-361.65945006,0.00021647,2]
[312769072,1706203837999,-155.0,0.00021647,2]